[Event "LJ Slovak Open 2022"]
[Site "Liptovsky Jan"]
[Date "2022.06.24"]
[Round "2.39"]
[White "Sekova, Olivia"]
[Black "Carnecky, Michal"]
[Result "1-0"]
[ECO "C50"]
[WhiteElo "1708"]
[BlackElo "1361"]
[Annotator "NA RC"]
[PlyCount "73"]
[EventDate "2022.06.23"]
[EventType "swiss"]
[EventCountry "SVK"]
[SourceTitle "playchess.com"]
[Source "ChessBase"]
[SourceQuality "1"]
[TimeControl "3600+30"]

1. e4 {[%emt 0:00:04]} e5 {[%emt 0:00:12]} 2. Nf3 {[%emt 0:00:10]} Nc6 {[%emt 0:00:20]} 3. Bc4 {[%emt 0:00:27]} Be7 {[%emt 0:03:05]} 4. c3 {[%emt 0:02:40]} Nf6 {[%emt 0:01:06]} 5. O-O {[%emt 0:04:43]} d5 {[%emt 0:01:53]} 6. exd5 {[%emt 0:00:37]} Nxd5 {[%emt 0:00:21]} 7. Re1 {[%emt 0:11:58]} f6 {[%emt 0:01:06]} 8. d3 {[%emt 0:01:33]} Bg4 {[%emt 0:03:37]} 9. Nbd2 {[%emt 0:02:35]} Na5 {[%emt 0:01:54]} 10. Qa4+ {[%emt 0:00:34]} Nc6 {[%emt 0:00:24]} 11. Bxd5 {[%emt 0:00:08]} Qxd5 {[%emt 0:00:34]} 12. Qxg4 {[%emt 0:00:07]} Qxd3 {[%emt 0:02:32]} 13. Nb3 {[%emt 0:06:36]} f5 {[%emt 0:01:30]} 14. Qxg7 {[%emt 0:01:05]} O-O-O {[%emt 0:00:29]} 15. Nxe5 {[%emt 0:01:04]} Nxe5 {[%emt 0:01:33]} 16. Qxe5 {[%emt 0:00:40]} Bd6 {[%emt 0:00:32]} 17. Qe3 {[%emt 0:00:28]} Rhe8 {[%emt 0:00:54]} 18. Qd2 {[%emt 0:02:31]} Bf4 {[%emt 0:07:58]} 19. Re3 {[%emt 0:02:52]} Bxe3 {[%emt 0:09:32]} 20. Qxd3 {[%emt 0:08:27]} Bxf2+ {[%emt 0:03:26]} 21. Kxf2 {[%emt 0:00:07]} Rxd3 {[%emt 0:00:25]} 22. Bf4 {[%emt 0:00:28]} Rd5 {[%emt 0:02:08]} 23. g3 {[%emt 0:01:23]} b6 {[%emt 0:01:24]} 24. Nd4 {[%emt 0:00:48]} Kb7 {[%emt 0:01:43]} 25. a4 {[%emt 0:01:28]} a5 {[%emt 0:00:23]} 26. Nb5 {[%emt 0:00:20]} Rd7 {[%emt 0:01:15]} 27. Nxc7 {[%emt 0:01:41]} Rxc7 {[%emt 0:00:15]} 28. Bxc7 {[%emt 0:00:06]} Kxc7 {[%emt 0:00:10]} 29. Rd1 {[%emt 0:00:29]} Kc6 {[%emt 0:00:18]} 30. Rd4 {[%emt 0:00:50]} Re7 {[%emt 0:01:33]} 31. Rf4 {[%emt 0:00:30]} Re5 {[%emt 0:01:35]} 32. Rh4 {[%emt 0:01:36]} Re7 {[%emt 0:00:15]} 33. Rh5 {[%emt 0:00:07]} Rf7 {[%emt 0:00:17]} 34. Kf3 {[%emt 0:00:11]} Kd6 {[%emt 0:00:40]} 35. Kf4 {[%emt 0:00:20]} Ke6 {[%emt 0:00:22]} 36. Rh6+ {[%emt 0:00:08]} Kd5 {[%emt 0:00:37]} 37. Rxb6 {[%emt 0:00:50]} 1-0

[Event "LJ Slovak Open 2022"]
[Site "Liptovsky Jan"]
[Date "2022.06.24"]
[Round "2.41"]
[White "Marcek, Jan"]
[Black "Magda, Juraj"]
[Result "1-0"]
[ECO "B50"]
[WhiteElo "1588"]
[BlackElo "1301"]
[Annotator "NA RC"]
[PlyCount "50"]
[EventDate "2022.06.23"]
[EventType "swiss"]
[EventCountry "SVK"]
[SourceTitle "playchess.com"]
[Source "ChessBase"]
[SourceQuality "1"]
[TimeControl "3600+30"]

1. e4 {[%emt 0:00:09]} c5 {[%emt 0:00:13]} 2. Nf3 {[%emt 0:00:22]} Nc6 {[%emt 0:00:14]} 3. c3 {[%emt 0:00:26]} d6 {[%emt 0:00:11]} 4. h3 {[%emt 0:00:17]} g6 {[%emt 0:00:29]} 5. Be2 {[%emt 0:00:56]} Bg7 {[%emt 0:00:19]} 6. O-O {[%emt 0:00:20]} Nf6 {[%emt 0:00:22]} 7. d3 {[%emt 0:00:17]} O-O {[%emt 0:00:28]} 8. Nh2 {[%emt 0:02:57]} Bd7 {[%emt 0:01:48]} 9. Nd2 {[%emt 0:01:08]} b5 {[%emt 0:06:17]} 10. Nhf3 {[%emt 0:04:32]} a5 {[%emt 0:01:27]} 11. Re1 {[%emt 0:04:23]} Qc8 {[%emt 0:02:18]} 12. Bf1 {[%emt 0:02:58]} Nh5 {[%emt 0:06:48]} 13. Kh1 {[%emt 0:04:03]} Nf4 {[%emt 0:05:03]} 14. Ng1 {[%emt 0:00:41]} b4 {[%emt 0:05:45]} 15. Rb1 {[%emt 0:04:05]} bxc3 {[%emt 0:01:35]} 16. Ndf3 {[%emt 0:00:15]} Ne6 {[%emt 0:03:42]} 17. Ne2 {[%emt 0:01:58]} Rb8 {[%emt 0:00:46]} 18. a3 {[%emt 0:05:53]} cxb2 {[%emt 0:00:14]} 19. Bd2 {[%emt 0:00:43]} Qa6 {[%emt 0:03:31]} 20. Nc3 {[%emt 0:01:15]} Ned4 {[%emt 0:01:17]} 21. Nd5 {[%emt 0:05:38]} Qb7 {[%emt 0:04:27]} 22. Bg5 {[%emt 0:07:46]} e6 {[%emt 0:02:36]} 23. Nf6+ {[%emt 0:02:40]} Bxf6 {[%emt 0:02:17]} 24. Bxf6 {[%emt 0:00:23]} Qb3 {[%emt 0:00:20]} 25. Qd2 {[%emt 0:00:32]} Qc2 {[%emt 0:11:03]} 1-0

[Event "LJ Slovak Open 2022"]
[Site "Liptovsky Jan"]
[Date "2022.06.24"]
[Round "2.42"]
[White "Livnansky, Michal"]
[Black "Carnecka, Stella"]
[Result "0-1"]
[ECO "B35"]
[WhiteElo "1279"]
[BlackElo "1648"]
[Annotator "NA RC"]
[PlyCount "58"]
[EventDate "2022.06.23"]
[EventType "swiss"]
[EventCountry "SVK"]
[SourceTitle "playchess.com"]
[Source "ChessBase"]
[SourceQuality "1"]
[TimeControl "3600+30"]

1. e4 {[%emt 0:00:06]} c5 {[%emt 0:00:09]} 2. Nf3 {[%emt 0:00:10]} Nc6 {[%emt 0:00:39]} 3. d4 {[%emt 0:00:15]} cxd4 {[%emt 0:00:00]} 4. Nxd4 {[%emt 0:00:25]} g6 {[%emt 0:00:10]} 5. Nc3 {[%emt 0:00:28]} Bg7 {[%emt 0:00:08]} 6. Be3 {[%emt 0:00:07]} Nf6 {[%emt 0:00:09]} 7. Bc4 {[%emt 0:00:38]} O-O {[%emt 0:01:12]} 8. O-O {[%emt 0:00:11]} Ng4 {[%emt 0:01:53]} 9. Nxc6 {[%emt 0:06:35]} dxc6 {[%emt 0:02:17]} 10. Qd2 {[%emt 0:07:16]} Qc7 {[%emt 0:17:16]} 11. Bf4 {[%emt 0:03:47]} Ne5 {[%emt 0:03:22]} 12. Bb3 {[%emt 0:08:15]} b5 {[%emt 0:04:21]} 13. a3 {[%emt 0:04:41]} a5 {[%emt 0:03:04]} 14. Qe3 {[%emt 0:01:06]} Qb7 {[%emt 0:00:31]} 15. Qc5 {[%emt 0:06:52]} Ng4 {[%emt 0:06:38]} 16. f3 {[%emt 0:01:29]} Nf6 {[%emt 0:00:13]} 17. e5 {[%emt 0:04:16]} Nd7 {[%emt 0:07:46]} 18. Qxe7 {[%emt 0:03:11]} Nxe5 {[%emt 0:04:05]} 19. Qc5 {[%emt 0:10:57]} Nc4 {[%emt 0:03:07]} 20. Bxc4 {[%emt 0:02:50]} bxc4 {[%emt 0:00:14]} 21. Na4 {[%emt 0:02:03]} Qb5 {[%emt 0:01:29]} 22. Qxb5 {[%emt 0:01:12]} Bd4+ {[%emt 0:01:33]} 23. Kh1 {[%emt 0:00:46]} cxb5 {[%emt 0:00:07]} 24. Nc3 {[%emt 0:00:48]} Ba6 {[%emt 0:01:55]} 25. Rad1 {[%emt 0:01:41]} Bg7 {[%emt 0:01:08]} 26. Bd6 {[%emt 0:01:33]} Rfd8 {[%emt 0:00:52]} 27. Bc7 {[%emt 0:00:19]} Rxd1 {[%emt 0:00:15]} 28. Nxd1 {[%emt 0:01:31]} Bb7 {[%emt 0:01:07]} 29. Re1 {[%emt 0:00:11]} b4 {[%emt 0:00:10]} 0-1

[Event "LJ Slovak Open 2022"]
[Site "Liptovsky Jan"]
[Date "2022.06.24"]
[Round "2.43"]
[White "Mazak, Ryan"]
[Black "Livnansky, Tomas"]
[Result "1-0"]
[ECO "C00"]
[WhiteElo "1575"]
[BlackElo "1244"]
[Annotator "NA RC"]
[PlyCount "55"]
[EventDate "2022.06.23"]
[EventType "swiss"]
[EventCountry "SVK"]
[SourceTitle "playchess.com"]
[Source "ChessBase"]
[SourceQuality "1"]
[TimeControl "3600+30"]

1. e4 {[%emt 0:01:32]} e6 {[%emt 0:00:32]} 2. b3 {[%emt 0:01:05]} g6 {[%emt 0:00:30]} 3. Bb2 {[%emt 0:00:23]} Nf6 {[%emt 0:00:13]} 4. d3 {[%emt 0:03:03]} Bg7 {[%emt 0:01:24]} 5. Nd2 {[%emt 0:03:41]} O-O {[%emt 0:00:25]} 6. Ngf3 {[%emt 0:02:22]} d5 {[%emt 0:01:12]} 7. e5 {[%emt 0:00:39]} Nfd7 {[%emt 0:00:16]} 8. d4 {[%emt 0:00:26]} b6 {[%emt 0:02:40]} 9. Bd3 {[%emt 0:00:43]} c5 {[%emt 0:01:53]} 10. c3 {[%emt 0:00:37]} f6 {[%emt 0:02:03]} 11. exf6 {[%emt 0:00:44]} cxd4 {[%emt 0:00:54]} 12. fxg7 {[%emt 0:00:43]} Kxg7 {[%emt 0:00:30]} 13. cxd4 {[%emt 0:00:19]} Nc6 {[%emt 0:03:59]} 14. O-O {[%emt 0:00:32]} Qf6 {[%emt 0:04:19]} 15. a3 {[%emt 0:01:15]} e5 {[%emt 0:00:38]} 16. dxe5 {[%emt 0:00:55]} Ndxe5 {[%emt 0:00:23]} 17. Qe2 {[%emt 0:01:00]} Nxf3+ {[%emt 0:01:36]} 18. Nxf3 {[%emt 0:00:17]} d4 {[%emt 0:00:03]} 19. Be4 {[%emt 0:00:51]} Re8 {[%emt 0:03:43]} 20. Qd3 {[%emt 0:00:35]} Bf5 {[%emt 0:00:34]} 21. Bxf5 {[%emt 0:00:21]} Qxf5 {[%emt 0:00:30]} 22. Qxf5 {[%emt 0:00:15]} gxf5 {[%emt 0:00:22]} 23. Nxd4 {[%emt 0:00:13]} Nxd4 {[%emt 0:01:43]} 24. Bxd4+ {[%emt 0:00:00]} Kg6 {[%emt 0:00:49]} 25. g3 {[%emt 0:00:09]} Rad8 {[%emt 0:03:06]} 26. Rad1 {[%emt 0:00:30]} Kh5 {[%emt 0:00:10]} 27. Kg2 {[%emt 0:00:17]} f4 {[%emt 0:00:20]} 28. h3 {[%emt 0:00:00]} 1-0

[Event "LJ Slovak Open 2022"]
[Site "Liptovsky Jan"]
[Date "2022.06.24"]
[Round "2.44"]
[White "Hudak, Michal"]
[Black "Mikula, Maciej"]
[Result "0-1"]
[ECO "E60"]
[WhiteElo "1169"]
[BlackElo "1567"]
[Annotator "NA RC"]
[PlyCount "40"]
[EventDate "2022.06.23"]
[EventType "swiss"]
[EventCountry "SVK"]
[SourceTitle "playchess.com"]
[Source "ChessBase"]
[SourceQuality "1"]
[TimeControl "3600+30"]

1. d4 {[%emt 0:00:05]} Nf6 {[%emt 0:00:48]} 2. Nf3 {[%emt 0:00:40]} c5 {[%emt 0:00:47]} 3. e3 {[%emt 0:01:05]} g6 {[%emt 0:02:14]} 4. Bd3 {[%emt 0:00:38]} Bg7 {[%emt 0:01:08]} 5. c4 {[%emt 0:00:32]} d5 {[%emt 0:00:41]} 6. dxc5 {[%emt 0:01:57]} Qa5+ {[%emt 0:02:30]} 7. Bd2 {[%emt 0:00:30]} Qxc5 {[%emt 0:00:48]} 8. Qb3 {[%emt 0:07:33]} a5 {[%emt 0:05:13]} 9. Nc3 {[%emt 0:01:01]} dxc4 {[%emt 0:05:16]} 10. Bxc4 {[%emt 0:03:57]} O-O {[%emt 0:00:23]} 11. Rc1 {[%emt 0:01:42]} Qh5 {[%emt 0:01:32]} 12. Ne2 {[%emt 0:07:03]} Ne4 {[%emt 0:04:10]} 13. Bxf7+ {[%emt 0:03:30]} Kh8 {[%emt 0:02:41]} 14. Nf4 {[%emt 0:10:03]} Nxd2 {[%emt 0:02:19]} 15. Kxd2 {[%emt 0:02:03]} a4 {[%emt 0:04:55]} 16. Qc4 {[%emt 0:10:18]} Qa5+ {[%emt 0:05:02]} 17. b4 {[%emt 0:00:33]} axb3+ {[%emt 0:00:11]} 18. Ke2 {[%emt 0:00:45]} bxa2 {[%emt 0:03:11]} 19. Nd4 {[%emt 0:11:59]} Nc6 {[%emt 0:03:16]} 20. Nb5 {[%emt 0:01:31]} Ne5 {[%emt 0:02:52]} 0-1

[Event "LJ Slovak Open 2022"]
[Site "Liptovsky Jan"]
[Date "2022.06.24"]
[Round "2.45"]
[White "Bohacek, Ludovit"]
[Black "Polackova, Eva"]
[Result "1-0"]
[ECO "B12"]
[WhiteElo "1594"]
[BlackElo "1253"]
[Annotator "NA RC"]
[PlyCount "52"]
[EventDate "2022.06.23"]
[EventType "swiss"]
[EventCountry "SVK"]
[SourceTitle "playchess.com"]
[Source "ChessBase"]
[SourceQuality "1"]
[TimeControl "3600+30"]

1. e4 {[%emt 0:00:11]} c6 {[%emt 0:00:29]} 2. d4 {[%emt 0:00:56]} d5 {[%emt 0:01:05]} 3. e5 {[%emt 0:01:35]} Bf5 {[%emt 0:01:14]} 4. Nf3 {[%emt 0:03:06]} e6 {[%emt 0:01:22]} 5. Bd3 {[%emt 0:00:41]} Bxd3 {[%emt 0:00:59]} 6. Qxd3 {[%emt 0:00:23]} Ne7 {[%emt 0:00:52]} 7. b3 {[%emt 0:02:09]} c5 {[%emt 0:01:40]} 8. Qb5+ {[%emt 0:01:50]} Nd7 {[%emt 0:02:34]} 9. O-O {[%emt 0:04:01]} Nc6 {[%emt 0:02:23]} 10. Ba3 {[%emt 0:07:33]} cxd4 {[%emt 0:03:09]} 11. Bxf8 {[%emt 0:00:31]} Nxf8 {[%emt 0:00:37]} 12. Nxd4 {[%emt 0:01:38]} Qd7 {[%emt 0:02:10]} 13. Nxc6 {[%emt 0:01:18]} Qxc6 {[%emt 0:00:37]} 14. Na3 {[%emt 0:03:14]} Nd7 {[%emt 0:02:26]} 15. Qe2 {[%emt 0:00:41]} O-O {[%emt 0:01:07]} 16. Nb5 {[%emt 0:00:15]} Rfc8 {[%emt 0:02:22]} 17. c4 {[%emt 0:01:26]} dxc4 {[%emt 0:01:01]} 18. Nd6 {[%emt 0:00:16]} Rc7 {[%emt 0:01:56]} 19. Nxc4 {[%emt 0:00:30]} Qb5 {[%emt 0:01:38]} 20. Qh5 {[%emt 0:01:56]} Qc5 {[%emt 0:04:09]} 21. a4 {[%emt 0:03:05]} Qd5 {[%emt 0:04:25]} 22. Rad1 {[%emt 0:01:17]} Qe4 {[%emt 0:00:18]} 23. f4 {[%emt 0:01:57]} Qc2 {[%emt 0:02:46]} 24. Qf3 {[%emt 0:02:21]} Nc5 {[%emt 0:00:52]} 25. Na5 {[%emt 0:02:20]} b6 {[%emt 0:00:48]} 26. Qxa8+ {[%emt 0:00:07]} Rc8 {[%emt 0:00:31]} 1-0

[Event "LJ Slovak Open 2022"]
[Site "Liptovsky Jan"]
[Date "2022.06.24"]
[Round "2.46"]
[White "Szaszak, Matej"]
[Black "Dicer, Juraj"]
[Result "1-0"]
[ECO "B30"]
[WhiteElo "1235"]
[BlackElo "1562"]
[Annotator "NA RC"]
[PlyCount "61"]
[EventDate "2022.06.23"]
[EventType "swiss"]
[EventCountry "SVK"]
[SourceTitle "playchess.com"]
[Source "ChessBase"]
[SourceQuality "1"]
[TimeControl "3600+30"]

1. e4 {[%emt 0:00:18]} c5 {[%emt 0:00:05]} 2. Bc4 {[%emt 0:00:12]} Nc6 {[%emt 0:00:15]} 3. Nc3 {[%emt 0:00:11]} Nf6 {[%emt 0:00:22]} 4. d3 {[%emt 0:00:09]} d6 {[%emt 0:00:30]} 5. h3 {[%emt 0:00:12]} g6 {[%emt 0:00:18]} 6. Nf3 {[%emt 0:00:12]} Bg7 {[%emt 0:00:04]} 7. O-O {[%emt 0:00:33]} O-O {[%emt 0:00:03]} 8. Be3 {[%emt 0:00:08]} a6 {[%emt 0:00:32]} 9. Qd2 {[%emt 0:00:26]} Re8 {[%emt 0:00:36]} 10. Bh6 {[%emt 0:01:06]} Bh8 {[%emt 0:06:03]} 11. Ng5 {[%emt 0:00:20]} e6 {[%emt 0:02:46]} 12. f4 {[%emt 0:00:55]} b5 {[%emt 0:01:01]} 13. Bb3 {[%emt 0:00:21]} b4 {[%emt 0:02:39]} 14. Ne2 {[%emt 0:00:25]} Bb7 {[%emt 0:00:40]} 15. f5 {[%emt 0:00:53]} Na5 {[%emt 0:05:21]} 16. fxe6 {[%emt 0:00:31]} fxe6 {[%emt 0:03:07]} 17. Nxe6 {[%emt 0:01:29]} Qe7 {[%emt 0:01:00]} 18. Ng5+ {[%emt 0:00:16]} Nxb3 {[%emt 0:00:25]} 19. cxb3 {[%emt 0:00:20]} Qe5 {[%emt 0:07:50]} 20. Nf3 {[%emt 0:02:19]} Qe7 {[%emt 0:02:11]} 21. Ng3 {[%emt 0:01:59]} Nd7 {[%emt 0:01:58]} 22. Rae1 {[%emt 0:01:42]} Ne5 {[%emt 0:01:54]} 23. Nxe5 {[%emt 0:02:17]} Bxe5 {[%emt 0:01:26]} 24. Qf2 {[%emt 0:02:40]} Qh4 {[%emt 0:07:07]} 25. Qf7+ {[%emt 0:01:40]} Kh8 {[%emt 0:03:56]} 26. Bf4 {[%emt 0:01:07]} Bd4+ {[%emt 0:07:33]} 27. Kh2 {[%emt 0:02:14]} Re7 {[%emt 0:01:41]} 28. Qc4 {[%emt 0:04:33]} d5 {[%emt 0:01:29]} 29. Qc1 {[%emt 0:02:32]} dxe4 {[%emt 0:00:57]} 30. Bg5 {[%emt 0:00:13]} Bxb2 {[%emt 0:01:39]} 31. Qxb2+ {[%emt 0:00:14]} 1-0

[Event "LJ Slovak Open 2022"]
[Site "Liptovsky Jan"]
[Date "2022.06.24"]
[Round "2.47"]
[White "Skutil, Frantisek Elias"]
[Black "Kovacik, Oliver"]
[Result "1-0"]
[ECO "B04"]
[WhiteElo "1552"]
[BlackElo "1331"]
[Annotator "NA RC"]
[PlyCount "45"]
[EventDate "2022.06.23"]
[EventType "swiss"]
[EventCountry "SVK"]
[SourceTitle "playchess.com"]
[Source "ChessBase"]
[SourceQuality "1"]
[TimeControl "3600+30"]

1. e4 {[%emt 0:00:05]} Nf6 {[%emt 0:00:33]} 2. e5 {[%emt 0:00:10]} Nd5 {[%emt 0:00:07]} 3. d4 {[%emt 0:01:38]} d6 {[%emt 0:00:26]} 4. c4 {[%emt 0:01:28]} Nb6 {[%emt 0:00:24]} 5. Nf3 {[%emt 0:00:41]} Nc6 {[%emt 0:00:59]} 6. exd6 {[%emt 0:01:56]} exd6 {[%emt 0:01:29]} 7. h3 {[%emt 0:02:59]} d5 {[%emt 0:00:32]} 8. c5 {[%emt 0:02:12]} Nd7 {[%emt 0:00:55]} 9. Nc3 {[%emt 0:01:35]} Nf6 {[%emt 0:00:37]} 10. Bg5 {[%emt 0:07:56]} Be7 {[%emt 0:00:59]} 11. Qb3 {[%emt 0:02:19]} O-O {[%emt 0:01:01]} 12. Rd1 {[%emt 0:11:15]} Re8 {[%emt 0:00:46]} 13. Be2 {[%emt 0:01:47]} h6 {[%emt 0:01:15]} 14. Bxf6 {[%emt 0:00:40]} Bxf6 {[%emt 0:00:42]} 15. Qxd5 {[%emt 0:01:47]} Qe7 {[%emt 0:00:57]} 16. b3 {[%emt 0:05:22]} Nb4 {[%emt 0:00:31]} 17. Qc4 {[%emt 0:01:59]} Nc2+ {[%emt 0:00:52]} 18. Kd2 {[%emt 0:04:33]} Nxd4 {[%emt 0:00:31]} 19. Nxd4 {[%emt 0:00:28]} Bxd4 {[%emt 0:00:14]} 20. Qxd4 {[%emt 0:04:59]} Rd8 {[%emt 0:00:10]} 21. Nd5 {[%emt 0:00:26]} Qg5+ {[%emt 0:00:32]} 22. Kc3 {[%emt 0:03:01]} c6 {[%emt 0:00:27]} 23. Ne7+ {[%emt 0:01:06]} 1-0

[Event "LJ Slovak Open 2022"]
[Site "Liptovsky Jan"]
[Date "2022.06.24"]
[Round "2.48"]
[White "Haasova, Nina"]
[Black "Straka, Simon"]
[Result "0-1"]
[ECO "D05"]
[WhiteElo "1216"]
[BlackElo "1523"]
[Annotator "NA RC"]
[PlyCount "52"]
[EventDate "2022.06.23"]
[EventType "swiss"]
[EventCountry "SVK"]
[SourceTitle "playchess.com"]
[Source "ChessBase"]
[SourceQuality "1"]
[TimeControl "3600+30"]

1. d4 {[%emt 0:00:03]} Nf6 {[%emt 0:00:11]} 2. Nf3 {[%emt 0:00:15]} e6 {[%emt 0:01:22]} 3. e3 {[%emt 0:00:35]} d5 {[%emt 0:01:39]} 4. Bd3 {[%emt 0:00:45]} c5 {[%emt 0:00:44]} 5. c3 {[%emt 0:00:22]} Nbd7 {[%emt 0:00:53]} 6. O-O {[%emt 0:00:40]} Ne4 {[%emt 0:02:35]} 7. Nbd2 {[%emt 0:00:59]} f5 {[%emt 0:02:18]} 8. Ne5 {[%emt 0:00:41]} Nxe5 {[%emt 0:03:04]} 9. dxe5 {[%emt 0:00:33]} Bd7 {[%emt 0:07:11]} 10. Bxe4 {[%emt 0:01:28]} dxe4 {[%emt 0:05:08]} 11. c4 {[%emt 0:01:25]} Qc7 {[%emt 0:01:44]} 12. a3 {[%emt 0:01:13]} Qxe5 {[%emt 0:01:26]} 13. Nb3 {[%emt 0:01:11]} O-O-O {[%emt 0:04:53]} 14. Qc2 {[%emt 0:00:52]} Ba4 {[%emt 0:01:23]} 15. Rd1 {[%emt 0:00:30]} Bd6 {[%emt 0:01:37]} 16. Bd2 {[%emt 0:01:15]} Qxh2+ {[%emt 0:00:48]} 17. Kf1 {[%emt 0:00:26]} Qh1+ {[%emt 0:00:42]} 18. Ke2 {[%emt 0:00:26]} Qxg2 {[%emt 0:00:26]} 19. Rg1 {[%emt 0:00:40]} Qf3+ {[%emt 0:00:16]} 20. Ke1 {[%emt 0:00:26]} Be5 {[%emt 0:03:13]} 21. Bc3 {[%emt 0:01:37]} Rd3 {[%emt 0:05:15]} 22. Kf1 {[%emt 0:01:21]} Rhd8 {[%emt 0:04:14]} 23. Ke1 {[%emt 0:00:42]} Bxb3 {[%emt 0:01:13]} 24. Qxb3 {[%emt 0:00:31]} Bxc3+ {[%emt 0:00:08]} 25. bxc3 {[%emt 0:00:22]} Rd2 {[%emt 0:00:15]} 26. Rf1 {[%emt 0:02:00]} Qe2# {[%emt 0:00:15]} 0-1

[Event "LJ Slovak Open 2022"]
[Site "Liptovsky Jan"]
[Date "2022.06.24"]
[Round "2.49"]
[White "Muller, Tomas"]
[Black "Gay, Lukas"]
[Result "0-1"]
[ECO "B01"]
[WhiteElo "1240"]
[BlackElo "1480"]
[Annotator "NA RC"]
[PlyCount "46"]
[EventDate "2022.06.23"]
[EventType "swiss"]
[EventCountry "SVK"]
[SourceTitle "playchess.com"]
[Source "ChessBase"]
[SourceQuality "1"]
[TimeControl "3600+30"]

1. e4 {[%emt 0:02:30]} d5 {[%emt 0:01:03]} 2. d3 {[%emt 0:01:37]} Nc6 {[%emt 0:01:34]} 3. Nf3 {[%emt 0:01:33]} dxe4 {[%emt 0:00:06]} 4. dxe4 {[%emt 0:00:40]} Bg4 {[%emt 0:00:20]} 5. Qxd8+ {[%emt 0:01:03]} Rxd8 {[%emt 0:00:02]} 6. Be2 {[%emt 0:01:07]} Nf6 {[%emt 0:01:13]} 7. Nc3 {[%emt 0:01:18]} e6 {[%emt 0:02:31]} 8. O-O {[%emt 0:01:12]} Be7 {[%emt 0:00:40]} 9. Bf4 {[%emt 0:03:00]} Bxf3 {[%emt 0:00:44]} 10. Bxf3 {[%emt 0:02:18]} e5 {[%emt 0:00:30]} 11. Bg3 {[%emt 0:00:30]} O-O {[%emt 0:01:32]} 12. a3 {[%emt 0:01:20]} Rd2 {[%emt 0:03:32]} 13. Rac1 {[%emt 0:01:25]} Rfd8 {[%emt 0:12:16]} 14. Nd5 {[%emt 0:02:28]} Nxd5 {[%emt 0:09:16]} 15. exd5 {[%emt 0:01:17]} Nd4 {[%emt 0:00:08]} 16. Be4 {[%emt 0:03:15]} f5 {[%emt 0:00:40]} 17. Bd3 {[%emt 0:00:37]} f4 {[%emt 0:00:05]} 18. Bxf4 {[%emt 0:02:22]} exf4 {[%emt 0:00:07]} 19. Rfe1 {[%emt 0:01:17]} Bf6 {[%emt 0:01:15]} 20. a4 {[%emt 0:01:44]} f3 {[%emt 0:01:20]} 21. Re3 {[%emt 0:01:52]} Ne2+ {[%emt 0:01:01]} 22. Bxe2 {[%emt 0:01:35]} fxe2 {[%emt 0:00:04]} 23. b3 {[%emt 0:01:46]} Rd1+ {[%emt 0:00:03]} 0-1

[Event "LJ Slovak Open 2022"]
[Site "Liptovsky Jan"]
[Date "2022.06.24"]
[Round "2.50"]
[White "Koren, Juraj"]
[Black "Nedoba, Jakub"]
[Result "1/2-1/2"]
[ECO "B01"]
[WhiteElo "1506"]
[BlackElo "1158"]
[Annotator "NA RC"]
[PlyCount "41"]
[EventDate "2022.06.23"]
[EventType "swiss"]
[EventCountry "SVK"]
[SourceTitle "playchess.com"]
[Source "ChessBase"]
[SourceQuality "1"]
[TimeControl "3600+30"]

1. e4 {[%emt 0:00:06]} d5 {[%emt 0:00:50]} 2. e5 {[%emt 0:00:23]} Bf5 {[%emt 0:00:28]} 3. d4 {[%emt 0:01:07]} e6 {[%emt 0:00:52]} 4. Ne2 {[%emt 0:00:50]} c5 {[%emt 0:01:27]} 5. c3 {[%emt 0:00:53]} Nc6 {[%emt 0:01:05]} 6. Be3 {[%emt 0:00:52]} cxd4 {[%emt 0:01:01]} 7. Bxd4 {[%emt 0:00:58]} Bg6 {[%emt 0:05:51]} 8. Nd2 {[%emt 0:02:36]} Nge7 {[%emt 0:01:35]} 9. Nb3 {[%emt 0:01:42]} Nf5 {[%emt 0:06:03]} 10. f4 {[%emt 0:05:40]} Ncxd4 {[%emt 0:02:51]} 11. Nbxd4 {[%emt 0:00:18]} Ne3 {[%emt 0:04:36]} 12. Qc1 {[%emt 0:02:05]} Nxf1 {[%emt 0:00:50]} 13. Rxf1 {[%emt 0:01:16]} Be7 {[%emt 0:03:13]} 14. Qd2 {[%emt 0:00:59]} O-O {[%emt 0:02:00]} 15. Nf3 {[%emt 0:06:12]} b5 {[%emt 0:06:27]} 16. Ned4 {[%emt 0:00:16]} Qb6 {[%emt 0:02:32]} 17. a3 {[%emt 0:01:50]} a5 {[%emt 0:02:05]} 18. Kf2 {[%emt 0:00:38]} Rfc8 {[%emt 0:05:00]} 19. Kg3 {[%emt 0:00:28]} b4 {[%emt 0:06:00]} 20. axb4 {[%emt 0:01:01]} axb4 {[%emt 0:00:26]} 21. Rxa8 {[%emt 0:00:07]} 1/2-1/2

[Event "LJ Slovak Open 2022"]
[Site "Liptovsky Jan"]
[Date "2022.06.24"]
[Round "2.51"]
[White "Pechociakova, Petra"]
[Black "Janouskova, Adela"]
[Result "0-1"]
[ECO "B50"]
[WhiteElo "1160"]
[BlackElo "1498"]
[Annotator "NA RC"]
[PlyCount "66"]
[EventDate "2022.06.23"]
[EventType "swiss"]
[EventCountry "SVK"]
[SourceTitle "playchess.com"]
[Source "ChessBase"]
[SourceQuality "1"]
[TimeControl "3600+30"]

1. e4 {[%emt 0:00:02]} c5 {[%emt 0:00:15]} 2. Nf3 {[%emt 0:00:08]} Nc6 {[%emt 0:00:24]} 3. Bc4 {[%emt 0:00:26]} d6 {[%emt 0:01:40]} 4. Ng5 {[%emt 0:02:35]} e6 {[%emt 0:02:19]} 5. d3 {[%emt 0:01:00]} h6 {[%emt 0:04:17]} 6. Nf3 {[%emt 0:01:48]} Nf6 {[%emt 0:03:21]} 7. Nc3 {[%emt 0:03:22]} Be7 {[%emt 0:02:44]} 8. Be3 {[%emt 0:04:36]} d5 {[%emt 0:01:09]} 9. exd5 {[%emt 0:05:59]} exd5 {[%emt 0:00:07]} 10. Bb5 {[%emt 0:01:43]} d4 {[%emt 0:00:37]} 11. Bxc6+ {[%emt 0:01:31]} bxc6 {[%emt 0:00:11]} 12. Bd2 {[%emt 0:01:39]} dxc3 {[%emt 0:00:33]} 13. Bxc3 {[%emt 0:00:13]} O-O {[%emt 0:00:54]} 14. Qe2 {[%emt 0:01:54]} Nd5 {[%emt 0:03:26]} 15. Bd2 {[%emt 0:02:10]} Bf6 {[%emt 0:00:41]} 16. c3 {[%emt 0:01:37]} Re8 {[%emt 0:00:28]} 17. Be3 {[%emt 0:02:11]} Nxc3 {[%emt 0:02:58]} 18. Qd2 {[%emt 0:01:41]} Nd5 {[%emt 0:00:51]} 19. O-O {[%emt 0:00:30]} Nxe3 {[%emt 0:00:37]} 20. fxe3 {[%emt 0:00:28]} Rb8 {[%emt 0:00:57]} 21. Rab1 {[%emt 0:00:52]} c4 {[%emt 0:01:04]} 22. d4 {[%emt 0:00:50]} Bf5 {[%emt 0:01:43]} 23. Rbc1 {[%emt 0:01:44]} Be6 {[%emt 0:01:58]} 24. Rfe1 {[%emt 0:02:06]} Bd5 {[%emt 0:00:41]} 25. Qf2 {[%emt 0:01:03]} Qd7 {[%emt 0:01:10]} 26. Re2 {[%emt 0:01:46]} Qg4 {[%emt 0:01:06]} 27. Rf1 {[%emt 0:00:33]} c3 {[%emt 0:03:21]} 28. bxc3 {[%emt 0:01:15]} Bc4 {[%emt 0:00:34]} 29. h3 {[%emt 0:00:29]} Qe6 {[%emt 0:00:55]} 30. a4 {[%emt 0:01:28]} Bxe2 {[%emt 0:00:15]} 31. Qxe2 {[%emt 0:00:09]} Qxe3+ {[%emt 0:00:13]} 32. Qxe3 {[%emt 0:00:16]} Rxe3 {[%emt 0:00:05]} 33. g4 {[%emt 0:00:40]} Rxc3 {[%emt 0:00:14]} 0-1